{"text_format":"1","workbook":"xlsx","n_sheets":2,"sheets":["Instruktioner","Rapportering"],"not_rendered":{"charts":0,"images":1,"macros":1,"external_links":0,"defined_names":3,"comments":0,"pivot_tables":0},"unopened":[],"bounds":{"document_bytes":16777216,"sheet_cells":100000,"rows_first":2000,"rows_last":500,"rows_between":2000,"halvings":0,"cell_chars":16384,"cell_head_chars":4096},"cells_cut":0,"cells_raw":0,"read":"whole","date_system":"1900"}

{"sheet":"Instruktioner","index":0,"n_rows":22,"n_cols":3,"rows_kept":22,"cut":false,"hidden":false,"merged":[]}
[]
[]
["Instruktioner rapportering till Svenska Celiakiförbundet"]
[]
["Rapportering:",null,"Frågor besvaras i olivgröna fält."]
[]
[null,null,"Innan ni börjar fylla i rapporten säkerställ att Makrofunktionen är aktiverad i ditt excelprogram (aktiverat makro är standard/default)"]
[]
[null,null,"Alla ja och nej frågor besvaras med hjälp av rullgardinlista, använd muspekare för att få fram svar."]
[null,null,"Ställ muspekare över olivgrönt fält och rullgardinslistan synliggörs. "]
[]
[null,null,"Frågor som ska besvaras med värden anges med siffror. fråga A1 och A2 besvaras dock med rullgardinslista"]
[]
[null,null,"Efter fråga A.1.b, A.6. och B.3.b. ska knappen efter svarsrutan tryckas på för att få fram"]
[null,null,"rätt följdfrågor. Observera att du först måste besvarat frågan innan du trycker på knappen."]
[]
[null,null,"Underfrågeavsnitt C så skall kalkylbladet fyllas i med belopp för det år som skall rapporteras. "]
[]
[null,null,"Om ni vill lämna en längre förklaring/beskrivning så skriv denna i ett separat dokument och hänvisa i "]
[null,null,"svarskolumn till bilaga, som ni sedan bilägger rapporten. "]
[]
[null,null,"Spara rapporten som föreningens namn."]

{"sheet":"Rapportering","index":1,"n_rows":172,"n_cols":25,"rows_kept":172,"cut":false,"hidden":false,"merged":[[144,3,144,12],[80,3,80,12],[13,3,13,12],[9,2,9,12],[10,2,10,12],[56,3,56,12]]}
[1]
[1,null,"Förening:",null,null,"Föreningen X"]
[1,{"$f":"IF(A$3<ROW(),TRUE,FALSE)","v":true},"Organisationsnummer:",null,null,"xxxxxx-xxxx"]
[1,null,"Räkenskapsperiod start:",null,null,"2016-01-01 - "]
[1,null,"Räkenskapsperiod slut:",null,null,"2016-12-31"]
[1,null,"Upprättad av:",null,null,"Namn namn",null,null,null,null,null,null,null,null,"Ja"]
[1,null,"Datum:",null,null,"2017-",null,null,null,null,null,null,null,null,"Nej"]
[1]
[1]
[1,null,"Rapportering till Svenska Celiakiförbundet"]
[1]
[1]
[1]
[1,null,null,"A.Föreningens struktur och styrning"]
[1]
[1,null,null,"Årsmöte"]
[1,null,"1.","Har något årsmöte anordnats under senaste 12-månadersperioden?"]
[1,null,"2.","När anordandes senaste årsmötet?",null,null,null,null,"2017-"]
[1,null,"3.","Antalet deltagare på senaste årsmötet?"]
[1]
[1,null,null,"Styrelse"]
[1,null,"1.","Antalet ledamöter i styrelsen",null,null,null,null,null,null,null,null,null,null,null,null,null,null,null,null,null,null,null,null,3]
[1,null,"1.b.","Lista styrelsens ledamöter",null,null,null,null,null,null,null,null,null,null,null,null,null,null,null,null,null,null,null,null,5]
[{"$f":"IF($K$22>=1,1,0)","v":0},null,null,null,null,"Styrelseledamot 1"]
[{"$f":"IF($K$22>=2,1,0)","v":0},null,null,null,null,"Styrelseledamot 2"]
[{"$f":"IF($K$22>=3,1,0)","v":0},null,null,null,null,"Styrelseledamot 3"]
[{"$f":"IF($K$22>=4,1,0)","v":0},null,null,null,null,"Styrelseledamot 4"]
[{"$f":"IF($K$22>=5,1,0)","v":0},null,null,null,null,"Styrelseledamot 5"]
[{"$f":"IF($K$22>=6,1,0)","v":0},null,null,null,null,"Styrelseledamot 6"]
[{"$f":"IF($K$22>=7,1,0)","v":0},null,null,null,null,"Styrelseledamot 7"]
[{"$f":"IF($K$22>=8,1,0)","v":0},null,null,null,null,"Styrelseledamot 8"]
[1,null,"2.","Ange minimiantalet ledamöter som anges i föreningens stadgar"]
[{"$f":"IF(K22>=K32,0,1)","v":0},null,"2.b.","Kommentar till att styrelsen inte är fulltaglig"]
[1,null,"3.","Antalet styrelsesammanträden under senaste 12 månadersperioden"]
[1,null,"4.","Har alla styrelsesammanträden protokollförts?"]
[1,null,"5.","Är protokollen justerade"]
[1,null,"6.","Utgår arvode till styrelsen"]
[{"$f":"IF(I37=\"Ja\",1,0)","v":0},null,"6.b.","Om ja, ange av stämman beslutade arvodesbelopp"]
[{"$f":"IF(I37=\"Ja\",1,0)*IF($K$22>=1,1,0)","v":0},null,"6.c.","Arvode till:",{"$f":"F24","v":"Styrelseledamot 1"}]
[{"$f":"IF(I37=\"Ja\",1,0)*IF($K$22>=2,1,0)","v":0},null,null,"Arvode till:","Styrelseledamot 2"]
[{"$f":"IF(I37=\"Ja\",1,0)*IF($K$22>=3,1,0)","v":0},null,null,"Arvode till:","Styrelseledamot 3"]
[{"$f":"IF(I37=\"Ja\",1,0)*IF($K$22>=4,1,0)","v":0},null,null,"Arvode till:","Styrelseledamot 4"]
[{"$f":"IF(I37=\"Ja\",1,0)*IF($K$22>=5,1,0)","v":0},null,null,"Arvode till:","Styrelseledamot 5"]
[{"$f":"IF(I37=\"Ja\",1,0)*IF($K$22>=6,1,0)","v":0},null,null,"Arvode till:","Styrelseledamot 6"]
[{"$f":"IF(I37=\"Ja\",1,0)*IF($K$22>=7,1,0)","v":0},null,null,"Arvode till:","Styrelseledamot 7"]
[{"$f":"IF(I37=\"Ja\",1,0)*IF($K$22>=8,1,0)","v":0},null,null,"Arvode till:","Styrelseledamot 8"]
[1,null,"6.d.","Beskriv eventuella utbetalade arvoden till styrelsen som avviker från beslut från årsmötet"]
[1]
[1,null,null,"Revisor(er)"]
[1,null,"1.","Har föreningen någon vald föreningsrevisor"]
[1,null,"1.b.","Om ja, ange namn"]
[1,null,"2.","Har föreningen någon vald extern revisor"]
[1,null,"2.b.","Om ja, ange namn"]
[1,null,"3.","Har revisorn(a) avlämnat en revisionsberättelse för senaste verksamhetsberättelsen?"]
[1,null,"3.b.","Har revisoren anmärkt på något i revisionsberättelsen?"]
[1]
[1,null,null,"B.Föreningens medlemmar och aktiviteter"]
[0]
[0,null,null,"Medlemmar (fylls i av Svenska Celiakiförbundet)"]
[0,null,"1.","Antalet röstberättigade medlemmar per:",null,{"$f":"F5","v":"2016-12-31"}]
[0,null,"1.a.","Antal huvudmedlemmer"]
[0,null,"1.b.","Antal familjemedlemmar"]
[0,null,"1.c.","Antal stödmedlemmer"]
[0]
[1,null,null,"Aktiviteter"]
[1,null,"1.","Hur många aktiviteter har föreningen under (året) anordnat?"]
[1,null,"2.","Hur många deltagare har aktiviteterna haft totalt"]
[1,null,"3.","Har andra medlemmar än röstberättigade medlemmar deltagit i aktiveterna"]
[1,null,"3.b.","Om ja. Hur många?"]
[1,null,"4.","Beskriv anordnande aktiviteter kortfattat (vad, var, när, koppling till föreningens syfte, kostnad) nedan:"]
[1]
[{"$f":"IF(K66>=1,1,0)","v":0},null,null,"Akitvitet 1","Typ av aktivitet",null,"Plats","Datum","Koppling till föreningens syfte",null,null,null,"Kostnad"]
[{"$f":"IF(K66>=2,1,0)","v":0},null,null,"Akitvitet 2","Typ av aktivitet",null,"Plats","Datum","Koppling till föreningens syfte",null,null,null,"Kostnad"]
[{"$f":"IF(K66>=3,1,0)","v":0},null,null,"Akitvitet 3","Typ av aktivitet",null,"Plats","Datum","Koppling till föreningens syfte",null,null,null,"Kostnad"]
[{"$f":"IF(K66>=4,1,0)","v":0},null,null,"Akitvitet 4","Typ av aktivitet",null,"Plats","Datum","Koppling till föreningens syfte",null,null,null,"Kostnad"]
[{"$f":"IF(K66>=5,1,0)","v":0},null,null,"Akitvitet 5","Typ av aktivitet",null,"Plats","Datum","Koppling till föreningens syfte",null,null,null,"Kostnad"]
[{"$f":"IF(K66>=6,1,0)","v":0},null,null,"Akitvitet 6","Typ av aktivitet",null,"Plats","Datum","Koppling till föreningens syfte",null,null,null,"Kostnad"]
[{"$f":"IF(K66>=7,1,0)","v":0},null,null,"Akitvitet 7","Typ av aktivitet",null,"Plats","Datum","Koppling till föreningens syfte",null,null,null,"Kostnad"]
[{"$f":"IF(K66>=8,1,0)","v":0},null,null,"Akitvitet 8","Typ av aktivitet",null,"Plats","Datum","Koppling till föreningens syfte",null,null,null,"Kostnad"]
[1]
[1,null,null,"C.Ekonomi"]
[1,null,null,"Räkenskapsperiod",null,{"$f":"F4","v":"2016-01-01 - "},{"$f":"F5","v":"2016-12-31"}]
[1]
[1,null,null,"Verksamhetsintäkter"]
[1,null,null,"Medlemsintäkt SCF"]
[1,null,null,"Bidrag region"]
[1,null,null,"Bidrag landsting"]
[1,null,null,"Bidrag övriga"]
[1,null,null,"Försäljning"]
[1,null,null,"Övriga intäkter"]
[1,null,null,"Summa verksamhetsintäkter",null,{"$f":"SUBTOTAL(9,F85:F90)","v":0}]
[1,null,null,"Verksamhetens kostnader"]
[1,null,null,"Personalkostnader",null,null,"(-)"]
[1,null,null,"Övriga externa kostnader",null,null,"(-)"]
[1,null,null,null,"Fördelning övriga externa kostnader"]
[1,null,null,null,"Resor",null,"(-)"]
[1,null,null,null,"Aktivitetskostnader",null,"(-)"]
[1,null,null,null,"Lokalkostnader",null,"(-)"]
[1,null,null,null,"Revisionskostnader",null,"(-)"]
[1,null,null,null,"Porto",null,"(-)"]
[1,null,null,null,"Material",null,"(-)"]
[1,null,null,null,"Föreläsararvode",null,"(-)"]
[1,null,null,null,"Övrigt",null,"(-)"]
[1,null,null,"Summa verksamhetskostnader",null,{"$f":"F93+F96+F97+F98+F99+F100+F101+F102+F103","v":0}]
[1,null,null,"Finansnetto*"]
[1,null,null,"Årets resultat",null,{"$f":"F91+F104+F105","v":0}]
[1,null,null,"Kassa/bank"]
[1,null,null,"* Nettoresultatet av finansiella intäkter och finansiella kostnader"]
[1]
[1,null,null,null,"Budget kommande verksamhetsår"]
[1]
[1,null,null,"Verksamhetsintäkter"]
[1,null,null,"Medlemsintäkt SCF"]
[1,null,null,"Bidrag region"]
[1,null,null,"Bidrag landsting"]
[1,null,null,"Bidrag övriga"]
[1,null,null,"Försäljning"]
[1,null,null,"Övriga intäkter"]
[1,null,null,"Summa verksamhetsintäkter",null,{"$f":"SUBTOTAL(9,F113:F118)","v":0}]
[1,null,null,"Verksamhetens kostnader"]
[1,null,null,"Personalkostnader",null,null,"(-)"]
[1,null,null,"Övriga externa kostnader"]
[1,null,null,null,"Fördelning övriga externa kostnader"]
[1,null,null,null,"Resor",null,"(-)"]
[1,null,null,null,"Aktivitetskostnader",null,"(-)"]
[1,null,null,null,"Lokalkostnader",null,"(-)"]
[1,null,null,null,"Revisionskostnader",null,"(-)"]
[1,null,null,null,"Porto",null,"(-)"]
[1,null,null,null,"Material",null,"(-)"]
[1,null,null,null,"Föreläsararvode",null,"(-)"]
[1,null,null,null,"Övrigt",null,"(-)"]
[1,null,null,"Summa verksamhetskostnader",null,{"$f":"F121+F124+F125+F126++F127+F128+F129+F130+F131","v":0}]
[1,null,null,"Finansnetto"]
[1,null,null,"Årets resultat",null,{"$f":"F119+F132+F133","v":0}]
[1,null,null,"Kassa/bank"]
[1]
[1]
[0,null,null,"Kontroller (till förbundet att skriva in manuella frågor/förtydliganden om så önskas)"]
[0,null,null,"Vad ingår i posten nettoomsättning?"]
[0]
[0]
[0]
[1]
[1]
[1,null,null,"D.Förvaltning av förening"]
[1]
[1,null,null,"Kansli"]
[1,null,"1.","Har föreningen någon anställd?"]
[1,null,"2.","Hur många timmar krävs för att driva föreningen uppdelat på:"]
[1,null,null,"Anställda:"]
[1,null,null,"Inhyrda:"]
[1,null,null,"Arvoderade:"]
[1,null,null,"Ideella krafter:"]
[1,null,"3.","Vem sköter bokföringen för föreningen?"]
[1,null,"4.","Utbetalningar från bank, beskriv kortfattat rutinen (bankdosa, ensam eller två i förening, skriftlig attest o.s.v.)"]
[1]
[1]
[1]
[1]
[1,null,"5. "]
[1,null,null,"I samband med att du skickar rapporteringen till Svenska Celiakiförbundet ska följande bifogas:"]
[]
[1,null,null,null,null,"Kopia på röstlängd vid senaste årsmöte, där varje deltagare skrivit sin namnteckning"]
[1,null,null,null,null,"Kopia på senaste avlämnande årsredovisning/årsbokslut/bankutdrag/föreningens ekonomiska ställning"]
[1,null,null,null,null,"Kopia på senast avlämnade underskrivna revisionsberättelse"]
[1,null,null,null,null,"Kopia på senast avlämnad verksamhetsberättelse, underskriven av samtliga i styrelsen "]
[1,null,null,null,null,"Kopia på verksamhetsplan för 2017"]
[null,null,null,null,null,"Kopia på budget för 2017"]
[null,null,null,null,null,"Kopia på underskrivet årsmötesprotokoll 2017"]
[null,null,null,null,null,"Kopia på underskrivet protokoll från konstituerigen av styrelsen 2017"]
[null,null,null,null,null,"Kopia på ekonomisk berättelse om aktiviteter under året"]
[null,null,null,null,null," Ifylld förtroendemannalista"]